bitfinex/quotes_ETHUSD_20240718
["timestamp","ask_amount","ask_price","bid_price","bid_amount"]
[1721304424378,4.63262348,3464.8,3464.7,0.09708662]
[1721304424587,3.81562348,3464.8,3464.7,0.09708662]
[1721304424822,4.63262348,3464.8,3464.6,2.88632]
[1721304425123,2.63566181,3464.8,3464.7,0.09708662]
[1721304425318,2.09165052,3464.8,3464.7,0.09708662]
[1721304425731,1.2252832,3464.8,3464.7,2.98333662]
[1721304425890,1.14919105,3464.8,3464.7,2.98333662]
[1721304426399,2.63510015,3465.0,3464.8,2.88612]
[1721304426724,1.149095,3464.9,3464.8,2.88612]
[1721304427313,1.81766596,3465.1,3465.0,2.886]
[1721304427632,2.63466596,3465.4,3465.2,2.88583]
[1721304427841,2.63466596,3465.5,3465.3,2.88575]
[1721304428049,0.47552762,3465.5,3465.4,2.88566]
[1721304428250,1.98881263,3465.5,3465.4,2.88566]
[1721304428847,0.47552762,3465.5,3465.4,2.88566]
[1721304429072,0.47552762,3465.5,3465.4,8.03262]
[1721304429073,1.51324419,3465.5,3465.4,8.03262]
[1721304429213,1.51324419,3465.7,3465.4,5.14696]
[1721304429420,1.20991571,3465.6,3465.5,2.88558]
[1721304429636,1.20991571,3465.7,3465.5,2.88558]
[1721304429805,0.90739737,3465.7,3465.6,5.771]
[1721304430008,0.90739737,3465.8,3465.7,5.77082]
[1721304430239,0.90739737,3466.0,3465.8,2.88533]
[1721304431219,0.90739737,3466.1,3466.0,2.88517]
[1721304431416,1.35215125,3466.1,3466.0,2.88517]
[1721304431602,1.35215125,3466.1,3466.0,2.98150106]
[1721304432208,0.44475388,3466.1,3466.0,2.98150106]
[1721304432630,1.26175388,3466.1,3466.0,0.09633106]
[1721304433013,1.26175388,3466.1,3465.8,2.88533]
[1721304433242,1.26175388,3466.1,3466.0,0.09633106]
[1721304433243,1.42043457,3466.1,3466.0,0.09633106]
[1721304434419,0.60343457,3466.1,3466.0,0.09633106]
[1721304434619,0.60343457,3466.2,3466.0,0.09633106]
[1721304436309,1.42043457,3466.3,3466.0,0.09633106]
[1721304438248,0.817,3466.3,3466.0,0.09633106]
[1721304438411,0.52125919,3466.2,3466.0,0.09633106]
[1721304438808,0.52125919,3466.2,3465.7,2.88541]
[1721304439049,0.52125919,3466.2,3466.1,0.09630651]
[1721304439482,0.52125919,3466.2,3465.8,2.88533]
[1721304439682,0.52125919,3466.2,3465.9,0.09612327]
[1721304439869,0.48265238,3466.1,3465.9,0.09612327]
[1721304441588,0.05800978,3466.0,3465.9,0.09612327]
[1721304441793,7.24878435,3466.0,3465.9,0.09612327]
[1721304441959,2.88577,3465.3,3464.7,7.32]
[1721304442163,2.88577,3465.3,3464.5,2.3135]
[1721304442164,0.817,3464.9,3464.5,2.3135]
[1721304442348,2.88585,3465.2,3464.8,0.09314107]
[1721304442349,0.817,3465.1,3464.8,0.09314107]
[1721304442544,0.817,3465.1,3464.5,2.3135]
[1721304442750,3.70298,3465.1,3464.9,0.0931165]
[1721304442961,3.70298,3465.1,3464.5,2.3135]
[1721304443202,2.88675,3464.1,3463.3,2.76583999]
[1721304443494,2.88675,3464.1,3463.3,2.3135]
[1721304443495,0.817,3464.0,3463.3,2.3135]
[1721304444293,2.88675,3464.1,3463.4,2.88727]
[1721304444467,2.94484978,3464.0,3463.3,2.3135]
[1721304444870,2.88684,3464.0,3463.3,2.3135]
[1721304445206,2.88684,3464.0,3463.3,5.2009]
[1721304445643,2.88684,3464.0,3463.4,2.88731]
[1721304446097,0.64337708,3464.1,3463.5,0.09346055]
[1721304446245,2.88672,3464.2,3463.5,0.09346055]
[1721304447801,2.88677,3464.1,3463.5,0.09346055]
[1721304448713,2.88709,3463.7,3463.5,0.09346055]
[1721304448918,2.88709,3463.7,3462.8,5.19172]
[1721304448919,2.94524978,3463.6,3462.8,5.19172]
[1721304449099,0.34671878,3463.6,3462.9,0.09360809]
[1721304449308,2.88725,3463.5,3462.9,0.09360809]
[1721304449463,0.05800978,3463.4,3462.9,0.09360809]
[1721304450007,2.94534978,3463.4,3462.9,0.09360809]
[1721304450219,3.55746466,3463.4,3462.9,0.09360809]
[1721304450880,3.49945488,3463.4,3462.9,0.09360809]
[1721304451700,2.88726,3463.5,3462.9,0.09360809]
[1721304451909,2.8871,3463.7,3462.9,0.09360809]
[1721304452080,2.88697,3463.9,3462.9,0.09360809]
[1721304452276,2.887,3463.8,3463.1,2.88753]
[1721304452525,2.887,3463.8,3463.2,0.09454298]
[1721304453917,3.5246241,3463.8,3463.2,0.09454298]
[1721304455623,2.88709,3463.7,3463.2,0.09454298]
[1721304456518,2.9964241,3463.8,3463.2,0.09454298]
[1721304456696,2.88731,3463.5,3462.7,2.88785]
[1721304456877,2.88731,3463.5,3462.8,2.3883]
[1721304457190,2.88731,3463.5,3462.9,0.09147011]
[1721304457954,2.88697,3463.9,3462.9,0.09147011]
[1721304458078,0.72797275,3463.8,3462.9,0.09147011]
[1721304458400,0.72797275,3463.8,3462.9,2.97918011]
[1721304458603,5.45007101,3464.2,3463.1,2.88751]
[1721304458802,2.88675,3464.1,3463.1,2.88751]
[1721304459514,2.88675,3464.1,3463.2,2.88743]
[1721304459892,2.88675,3464.1,3463.3,0.09136739]
[1721304460071,1.0695621,3464.0,3463.3,0.09136739]
[1721304460499,1.0695621,3464.0,3463.3,2.97871739]
[1721304461273,1.0695621,3464.0,3463.4,2.88732]
[1721304461477,1.0695621,3464.0,3463.5,0.09131822]
[1721304461745,1.0695621,3464.0,3463.4,2.88732]
[1721304461879,0.59173121,3463.9,3463.6,0.09129364]
[1721304462076,0.59173121,3463.9,3463.5,2.88725]
[1721304462514,0.59173121,3463.9,3463.6,0.09129364]
[1721304463014,0.59173121,3463.9,3463.7,0.09123207]
[1721304463315,0.59173121,3463.9,3463.5,2.88725]
[1721304463621,0.34784812,3463.8,3463.6,0.09125665]
[1721304463925,0.34784812,3463.8,3463.5,2.88725]
[1721304464083,0.34784812,3463.8,3463.6,0.09125665]
[1721304464409,0.34784812,3463.8,3463.5,2.88725]
[1721304464715,2.88659,3464.3,3463.6,5.37761665]
[1721304465694,2.88644,3464.5,3463.6,5.37754665]
[1721304465919,2.88644,3464.5,3463.7,2.88706]
[1721304466120,10.16629,3464.7,3463.8,2.887]
[1721304466434,2.17971375,3464.6,3463.9,2.88686]
[1721304466933,2.17971375,3464.6,3464.0,0.09115833]
[1721304468033,0.7479778,3465.0,3464.1,2.4782]
[1721304468327,0.05800978,3465.2,3464.6,2.88627]
[1721304468546,0.05800978,3465.2,3464.7,0.0907797]
[1721304469936,2.94385978,3465.2,3464.5,2.88641]
[1721304470096,0.29437798,3465.1,3464.6,0.09080427]
[1721304470296,0.05800978,3465.0,3464.6,0.09080427]
[1721304473159,5.44312978,3465.0,3464.6,0.09080427]
[1721304473346,0.86234378,3464.9,3464.3,2.88658]
[1721304473552,0.86234378,3464.9,3464.4,0.09085341]
[1721304474052,3.74844378,3464.9,3464.4,0.09085341]
[1721304474261,0.05800978,3464.8,3464.4,0.09085341]
[1721304474422,0.43865514,3464.7,3464.4,0.09085341]
[1721304474621,0.43865514,3464.7,3464.2,2.88665]
[1721304474854,0.43865514,3464.7,3464.5,0.09082884]
[1721304475057,0.43865514,3464.7,3464.2,2.88665]
[1721304475268,0.38064536,3464.7,3464.6,0.09080427]
[1721304475732,0.38064536,3464.7,3464.2,5.77326]
[1721304475733,0.38064536,3464.7,3464.4,2.88649]
[1721304475939,3.18030798,3465.1,3464.5,0.09082884]
[1721304476808,3.18030798,3465.1,3464.5,2.97722884]
[1721304480164,0.29437798,3465.1,3464.5,5.86356884]
[1721304480328,0.29437798,3465.1,3464.6,2.88626]
[1721304480553,0.60237101,3465.2,3464.7,2.9769175]
[1721304480754,0.60237101,3465.3,3464.7,2.9769175]
[1721304480944,0.66038079,3465.3,3464.7,2.9769175]
[1721304481146,2.94376978,3465.3,3464.7,2.9769175]
[1721304481376,3.48813101,3465.3,3464.7,2.9769175]
[1721304481684,0.67939875,3465.2,3464.7,2.9769175]
[1721304482286,1.28176976,3465.2,3464.7,2.9769175]
[1721304482783,1.28176976,3465.2,3464.7,0.0906775]
[1721304483161,1.33977954,3465.2,3464.7,0.0906775]
[1721304483790,1.28176976,3465.2,3464.7,0.0906775]
[1721304483961,0.51290961,3465.1,3464.7,0.0906775]
[1721304484162,1.11528062,3465.1,3464.7,0.0906775]
[1721304486074,1.11528062,3465.1,3464.7,2.9769175]
[1721304486075,0.60237101,3465.0,3464.7,2.9769175]
[1721304487158,0.60237101,3465.1,3464.7,2.9769175]
[1721304487495,0.60237101,3465.2,3464.7,2.9769175]
[1721304487693,0.60237101,3465.2,3464.9,2.88608]
[1721304487993,0.60237101,3465.2,3465.0,0.09048636]
[1721304488354,0.60237101,3465.2,3465.0,5.32254636]
[1721304488661,0.60237101,3465.2,3465.1,2.88591]
[1721304488877,0.60237101,3465.3,3465.1,2.88591]
[1721304489077,0.60237101,3465.3,3465.1,2.9763718]
[1721304489395,0.60237101,3465.4,3465.2,2.88583]
[1721304489692,0.90355652,3465.6,3465.4,2.88566]
[1721304489693,0.60237101,3465.6,3465.4,2.88566]
[1721304489898,0.60237101,3465.5,3465.4,2.88566]
[1721304490197,0.60237101,3465.6,3465.5,2.97584791]
[1721304490394,0.60237101,3465.7,3465.5,2.88558]
[1721304490553,0.60237101,3465.8,3465.6,2.8855]
[1721304490751,0.90355652,3466.0,3465.6,2.8855]
[1721304490752,0.60237101,3465.9,3465.6,2.8855]
[1721304490954,0.60237101,3465.9,3465.7,2.34009494]
[1721304491271,0.99906696,3465.9,3465.7,2.2501]
[1721304492502,0.99906696,3465.9,3465.7,5.13551]
[1721304492703,7.88237101,3466.1,3465.7,5.13551]
[1721304492907,7.88237101,3466.1,3465.8,0.0899052]
[1721304493119,0.60237101,3466.0,3465.8,0.0899052]
[1721304493267,0.60237101,3466.0,3465.5,2.88552]
[1721304493664,7.88237101,3466.1,3465.6,2.88548]
[1721304493870,1.16708975,3466.0,3465.7,2.88539]
[1721304494098,0.60237101,3466.0,3465.7,2.88539]
[1721304494303,0.60237101,3466.1,3465.8,0.08990085]
[1721304495207,0.60237101,3466.1,3465.6,5.77089]
[1721304495404,0.60237101,3466.1,3465.9,0.0898763]
[1721304495568,0.60237101,3466.1,3465.7,2.8854]
[1721304495775,0.60237101,3466.2,3465.9,2.88523]
[1721304495979,0.90355652,3466.3,3466.0,2.97502609]
[1721304495980,0.60237101,3466.3,3466.0,2.97502609]
[1721304496171,0.15059275,3466.2,3466.0,2.97502609]
[1721304496411,0.60237101,3466.4,3466.0,2.97502609]
[1721304496706,0.60237101,3466.4,3466.0,2.88517]
[1721304497312,0.60237101,3466.4,3465.8,5.26938]
[1721304497516,0.60237101,3466.3,3465.8,5.26938]
[1721304497807,0.60237101,3466.4,3465.9,2.97510109]
[1721304497969,0.43906875,3466.3,3465.9,2.97510109]
[1721304503407,2.88509,3466.1,3465.9,0.08986109]
[1721304503597,2.88509,3466.1,3465.4,5.19661]
[1721304503598,0.05800978,3466.0,3465.5,2.88558]
[1721304503792,0.05800978,3466.0,3465.6,0.08977611]
[1721304503992,0.05800978,3466.0,3465.4,2.311]
[1721304503993,0.74495773,3466.0,3465.4,5.19661]
[1721304504291,0.74495773,3466.0,3465.5,0.08980067]
[1721304504498,0.74495773,3466.0,3465.5,2.88558]
[1721304504499,0.68694795,3466.0,3465.5,2.88558]
[1721304504720,0.68694795,3466.0,3465.6,0.08977611]
[1721304506621,0.4174409,3465.9,3465.6,0.08977611]
[1721304508305,3.48746101,3466.1,3465.6,0.08977611]
[1721304510205,0.60237101,3466.0,3465.6,0.08977611]
[1721304511846,0.60237101,3466.0,3465.7,0.08978849]
[1721304512066,0.60237101,3466.0,3465.4,5.19662]
[1721304512241,6.67380652,3466.1,3465.8,0.08976394]
[1721304512242,0.60237101,3465.9,3465.8,0.08976394]
[1721304512430,1.32998876,3465.9,3465.4,5.19662]
[1721304512633,1.32998876,3465.9,3465.8,0.08976394]
[1721304512952,1.32998876,3465.9,3465.4,5.19662]
[1721304513149,1.32998876,3465.9,3465.8,0.08976394]
[1721304513322,1.32998876,3465.9,3465.4,5.19662]
[1721304513523,1.32998876,3465.9,3465.8,0.08976394]
[1721304513726,1.32998876,3465.9,3465.4,5.19662]
[1721304513926,1.32998876,3465.9,3465.8,0.08976394]
[1721304514165,1.32998876,3465.9,3465.4,5.19662]
[1721304514364,1.32998876,3465.9,3465.8,0.08976394]
[1721304514852,1.32998876,3465.9,3465.4,5.19662]
[1721304515047,1.32998876,3465.9,3465.8,0.08976394]
[1721304515247,1.32998876,3465.9,3465.4,5.19662]
[1721304515455,1.32998876,3465.9,3465.8,0.08976394]
[1721304515770,1.32998876,3465.9,3465.4,5.19662]
[1721304515928,1.32998876,3465.9,3465.8,0.08976394]
[1721304516456,1.32998876,3465.9,3465.4,5.19662]
[1721304516641,1.32998876,3465.9,3465.8,0.08980304]
[1721304516842,1.32998876,3465.9,3465.4,5.19662]
[1721304517049,0.60237101,3465.9,3465.8,0.08980304]
[1721304517253,0.60237101,3465.9,3465.4,5.19662]
[1721304517473,0.60237101,3465.8,3465.4,5.19662]
[1721304517971,0.60237101,3465.8,3465.4,2.88562]
[1721304518169,3.78872652,3466.0,3465.4,2.88562]
[1721304518170,0.60237101,3465.7,3465.4,2.88562]
[1721304519781,0.60237101,3465.7,3465.5,2.4394]
[1721304520542,0.55237101,3465.7,3465.5,2.4394]
[1721304521248,0.55237101,3465.7,3465.6,0.08985215]
[1721304521451,0.90355652,3465.8,3465.6,0.08985215]
[1721304521773,0.90355652,3465.7,3465.6,0.08985215]
[1721304522085,0.90355652,3465.7,3465.4,2.88566]
[1721304522393,0.90355652,3465.7,3465.5,0.0898767]
[1721304522560,0.90355652,3465.7,3465.4,2.88566]
[1721304522902,0.90355652,3465.7,3465.5,0.0898767]
[1721304523255,0.90355652,3465.7,3465.4,2.88566]
[1721304523570,0.90355652,3465.7,3465.6,0.08985215]
[1721304523756,0.90355652,3465.7,3465.4,2.88566]
[1721304524187,1.20474202,3465.8,3465.5,0.0898767]
[1721304524188,0.90355652,3465.6,3465.5,0.0898767]
[1721304524491,0.90355652,3465.6,3465.3,2.88572]
[1721304524662,0.90355652,3465.6,3465.5,0.0898767]
[1721304524982,0.90355652,3465.6,3465.4,0.08990126]
[1721304525187,0.90355652,3465.6,3465.5,0.0898767]
[1721304525388,0.90355652,3465.6,3465.3,2.88572]
[1721304525780,0.90355652,3465.6,3465.4,0.08990126]
[1721304527183,0.90355652,3465.5,3465.4,0.08990126]
[1721304527388,0.90355652,3465.5,3465.2,5.2203]
[1721304527797,0.90355652,3465.5,3465.3,0.08992582]
[1721304527993,0.90355652,3465.5,3465.2,5.2203]
[1721304528399,0.90355652,3465.5,3465.3,0.08992582]
[1721304528599,0.90355652,3465.5,3465.2,5.2203]
[1721304528999,0.90355652,3465.5,3465.3,2.97569539]
[1721304530308,0.90355652,3465.4,3465.3,2.97569539]
[1721304530710,0.90355652,3465.4,3465.3,0.08994539]
[1721304531111,0.90355652,3465.4,3465.2,2.3345]
[1721304532282,0.90355652,3465.3,3465.2,2.3345]
[1721304532685,0.90355652,3465.3,3465.2,5.22033]
[1721304534172,1.20474202,3465.4,3465.2,5.22033]
[1721304534386,1.20474202,3465.4,3465.2,2.3345]
[1721304534588,1.20474202,3465.4,3465.2,5.22031]
[1721304534793,0.90891596,3465.3,3465.2,5.22031]
[1721304535007,1.20474202,3465.4,3465.2,5.22031]
[1721304536387,1.20474202,3465.4,3465.3,0.08994539]
[1721304536611,1.20474202,3465.4,3465.2,8.10602]
[1721304536780,1.20474202,3465.4,3465.3,0.08997146]
[1721304536980,1.20474202,3465.4,3465.2,6.03626]
[1721304537194,1.20474202,3465.4,3465.3,0.08997146]
[1721304537400,1.20474202,3465.4,3465.2,6.03626]
[1721304537595,1.20474202,3465.4,3465.3,0.08997146]
[1721304537934,1.20474202,3465.5,3465.3,2.88575]
[1721304538100,1.20474202,3465.5,3465.3,2.97572146]
[1721304538823,1.20474202,3465.4,3465.3,2.97572146]
[1721304539600,1.20474202,3465.5,3465.4,2.88566]
[1721304539799,1.20474202,3465.5,3465.4,2.97557215]
[1721304543258,1.51512371,3465.6,3465.5,2.88558]
[1721304543404,1.51512371,3465.6,3465.5,2.97546759]
[1721304544012,1.51512371,3465.6,3465.5,0.08988759]
[1721304544541,1.51512371,3465.6,3465.5,0.08986152]
[1721304544932,1.51512371,3465.6,3465.4,2.88564]
[1721304545130,1.515367,3465.6,3465.5,0.08985283]
[1721304545512,2.88517,3466.0,3465.4,2.88564]
[1721304545707,2.88517,3466.0,3465.5,0.08985283]
[1721304545708,1.5154567,3465.6,3465.5,0.08985283]
[1721304546145,1.51545681,3465.6,3465.4,2.88564]
[1721304546360,1.81854817,3465.8,3465.5,0.08987021]
[1721304546522,2.7425432,3465.7,3465.5,0.08987021]
[1721304546718,0.86598525,3465.6,3465.2,5.22026]
[1721304547050,1.51569415,3465.4,3465.2,5.22026]
[1721304548268,2.88534,3465.8,3465.2,5.22026]
[1721304548555,1.51576399,3465.4,3465.2,5.22026]
[1721304550756,1.51576399,3465.4,3464.8,2.3686]
[1721304550757,3.75183704,3465.3,3464.8,2.3686]
[1721304550948,1.51599731,3464.9,3464.8,2.3686]
[1721304551142,1.51599731,3464.9,3464.5,5.7727]
[1721304551346,1.2123492,3464.8,3464.6,2.88631]
[1721304552256,0.90902591,3464.7,3464.6,2.88631]
[1721304555145,0.90902591,3464.8,3464.6,2.88631]
[1721304558258,0.90902591,3464.8,3464.6,2.88627]
[1721304558690,0.60547602,3464.8,3464.7,2.88624]
[1721304560581,0.60547602,3464.9,3464.8,2.88616]
[1721304561698,0.90902591,3465.0,3464.8,2.88616]
[1721304562709,0.90902591,3465.0,3464.8,5.77226]
[1721304562911,0.90902591,3465.0,3464.8,2.8861]
[1721304563986,0.90902591,3465.0,3464.8,5.7722]
[1721304565511,0.90902591,3465.0,3464.8,2.8861]
[1721304566217,0.90902591,3465.0,3464.9,0.09022401]
[1721304578383,0.90902591,3465.0,3464.9,5.86238401]
[1721304578586,0.90902591,3465.0,3464.9,8.18098401]
[1721304578772,0.90902591,3465.1,3465.0,5.772]
[1721304579077,0.90902591,3465.1,3465.0,5.86214078]
[1721304579640,1.2123492,3465.3,3465.1,2.88591]
[1721304579641,0.90902591,3465.2,3465.1,2.88591]
[1721304579845,0.90902591,3465.2,3465.1,2.97602622]
[1721304580541,0.90902591,3465.2,3465.1,5.86193622]
[1721304587620,1.2123492,3465.3,3465.2,2.88583]
[1721304587912,1.51392001,3465.3,3465.2,0.09005254]
[1721304588117,1.51392001,3465.4,3465.2,0.09005254]
[1721304588322,1.51392001,3465.3,3465.2,2.97588254]
[1721304590087,1.51392001,3465.3,3465.2,0.09005254]
[1721304590805,1.51392001,3465.3,3465.2,2.97588254]
[1721304591784,1.51392001,3465.3,3465.2,5.86171254]
[1721304592011,1.21170496,3465.3,3465.2,5.86171254]
[1721304592409,1.21170496,3465.3,3465.2,5.77166]
[1721304592715,1.21170496,3465.3,3465.2,5.86170382]
[1721304594888,1.21170496,3465.4,3465.3,2.88575]
[1721304595090,1.21170496,3465.4,3465.3,2.97576926]
[1721304597903,1.21170496,3465.4,3465.3,5.86151926]
[1721304602051,1.21170496,3465.5,3465.4,5.77132]
[1721304602375,1.21170496,3465.5,3465.4,5.8613147]
[1721304602540,1.21170496,3465.6,3465.5,2.88558]
[1721304602980,1.21170496,3465.7,3465.6,2.8855]
[1721304603179,1.51427315,3465.8,3465.6,2.8855]
[1721304603386,1.21145,3465.7,3465.6,2.97530218]
[1721304605280,1.21145,3465.8,3465.7,2.88541]
[1721304605481,1.21145,3465.8,3465.7,2.97518763]
[1721304605651,1.21145,3465.8,3465.7,5.86059763]
[1721304605847,1.21145,3465.9,3465.8,5.77066]
[1721304606365,1.21145,3465.9,3465.8,5.86041307]
[1721304606566,1.21145,3466.0,3465.9,2.88525]
[1721304606956,1.21145,3466.0,3465.9,2.97495463]
[1721304608047,1.21145,3466.1,3466.0,2.88517]
[1721304608248,1.21145,3466.1,3466.0,2.97481097]
[1721304611759,3.1666,3466.5,3466.0,2.97481097]
[1721304611760,1.21145,3466.2,3466.0,2.97481097]
[1721304612488,1.21145,3466.2,3466.1,2.88508]
[1721304612720,1.5124006,3466.4,3466.1,2.88508]
[1721304612721,1.21145,3466.3,3466.1,5.85976773]
[1721304613191,1.21145,3466.3,3466.1,2.97468773]
[1721304614311,1.21145,3466.2,3466.1,2.97468773]
[1721304615210,1.21145,3466.2,3466.1,0.08960773]
[1721304615612,1.21145,3466.2,3466.0,2.88516]
[1721304615916,1.21145,3466.2,3466.1,0.08960773]
[1721304616672,1.21145,3466.2,3465.9,2.88525]
[1721304616877,0.90713775,3466.1,3466.0,0.08954105]
[1721304617273,3.51625,3466.2,3466.0,0.08954105]
[1721304617501,3.51625,3466.2,3465.6,2.88543]
[1721304617502,1.21145,3466.1,3465.6,2.88543]
[1721304617742,0.60479981,3465.7,3465.6,2.88543]
[1721304618547,0.60479981,3465.7,3465.4,5.77126]
[1721304618849,0.60479981,3465.7,3465.5,5.88558]
[1721304619009,0.60479981,3465.6,3465.4,2.8856]
[1721304619358,0.60479981,3465.5,3465.4,2.8856]
[1721304619641,0.60479981,3465.5,3465.3,2.88575]
[1721304619804,0.60479981,3465.5,3465.3,5.77144]
[1721304620008,0.60479981,3465.4,3465.3,2.88569]
[1721304622820,4.97099978,3465.6,3464.7,2.2531]
[1721304623022,0.60509614,3464.9,3464.8,2.88612]
[1721304623259,0.60516626,3464.9,3464.8,2.88612]
[1721304623549,0.90764421,3465.0,3464.8,2.88612]
[1721304623753,1.51240267,3465.3,3464.8,2.88612]
[1721304623754,0.90764421,3464.9,3464.8,2.88612]
[1721304624049,0.90764421,3465.0,3464.8,2.88612]
[1721304624811,0.60512374,3464.9,3464.8,2.88612]
[1721304626054,0.60512374,3464.9,3464.8,3.70212]
[1721304626212,0.60512374,3465.0,3464.9,5.77216]
[1721304626528,0.60512374,3465.2,3465.1,5.77182]
[1721304626725,0.60512374,3465.5,3465.3,2.88575]
[1721304626918,0.60512374,3465.5,3465.4,0.08951248]
[1721304627472,0.60512374,3465.5,3465.4,2.97517248]
[1721304628533,0.60512374,3465.5,3465.4,5.86083248]
[1721304628734,1.21145,3465.9,3465.4,5.86083248]
[1721304628735,0.60512374,3465.8,3465.6,2.8855]
[1721304628957,0.90764421,3465.9,3465.6,3.7015]
[1721304628958,0.60512374,3465.7,3465.6,3.7015]
[1721304629431,0.60512374,3465.8,3465.6,3.7015]
[1721304629634,0.60512374,3465.7,3465.6,3.7015]
[1721304630061,0.90764421,3465.9,3465.6,3.7015]
[1721304630062,0.60512374,3465.8,3465.6,3.7015]
[1721304631234,0.60512374,3465.8,3465.7,2.88541]
[1721304636678,0.60512374,3465.8,3465.7,5.28311]
[1721304637179,0.60512374,3465.9,3465.8,2.88533]
[1721304637485,0.60512374,3465.9,3465.8,3.70133]
[1721304638060,0.60512374,3465.9,3465.8,6.58666]
[1721304639795,0.60512374,3466.0,3465.9,2.88525]
[1721304640255,0.60512374,3466.1,3466.0,2.88517]
[1721304640460,0.60512374,3466.1,3466.0,3.70117]
[1721304640909,0.60512374,3466.1,3466.0,2.88517]
[1721304641266,0.60512374,3466.1,3466.0,3.00628406]
[1721304642386,0.60512374,3466.1,3466.0,3.82228406]
[1721304643984,0.60512374,3466.2,3466.1,2.88508]
[1721304644390,0.60512374,3466.2,3466.1,3.00616859]
[1721304645460,0.90764421,3466.3,3466.1,0.12108859]
[1721304645793,1.5592429,3466.3,3465.9,2.88525]
[1721304645959,0.60484289,3466.1,3466.0,3.70117]
[1721304646161,0.60484289,3466.2,3466.0,3.70117]
[1721304646399,0.60484289,3466.2,3466.1,2.88508]
[1721304646973,0.60484289,3466.2,3466.1,5.77016]
[1721304647172,0.60484289,3466.4,3466.3,2.88492]
[1721304647548,0.60484289,3466.4,3466.3,0.816]
[1721304648489,0.60484289,3466.4,3466.3,3.70092]
[1721304648691,0.60484289,3466.5,3466.3,3.70092]
[1721304649217,0.60484289,3466.5,3466.4,2.88483]
[1721304649905,0.60484289,3466.6,3466.5,2.88475]
[1721304650705,0.60484289,3466.6,3466.5,3.70075]
[1721304653615,0.60484289,3466.7,3466.5,2.88475]
[1721304653917,0.60484289,3466.7,3466.6,2.88467]
[1721304654427,0.60421605,3467.0,3466.9,2.88442]
[1721304654779,0.60421605,3467.1,3466.9,2.88442]
[1721304655511,0.60421605,3467.2,3467.0,0.12062705]
[1721304663147,0.60421605,3467.2,3466.3,2.88487]
[1721304663148,2.88433,3467.0,3466.4,0.816]
[1721304663462,3.48774135,3467.0,3466.4,0.816]
[1721304663611,0.60341135,3466.9,3466.4,0.816]
[1721304664555,3.48783135,3466.9,3466.2,0.816]
[1721304664739,3.48783135,3466.9,3466.2,6.70095]
[1721304664938,0.60341135,3466.8,3466.2,6.70095]
[1721304665461,0.60341135,3466.7,3466.2,3.70095]
[1721304666751,0.60341135,3466.7,3466.0,2.3163]
[1721304666752,4.04869391,3466.7,3466.0,6.0174]
[1721304666917,3.10081135,3466.6,3466.0,6.0174]
[1721304667119,0.60341135,3466.5,3466.0,6.0174]
[1721304668356,0.60341135,3466.5,3466.0,3.7011]
[1721304668756,0.60341135,3466.5,3466.0,0.816]
[1721304668976,2.88524,3466.0,3465.3,2.4447]
[1721304669255,0.60341135,3466.2,3465.0,2.88595]
[1721304669256,2.88543,3465.7,3465.0,2.88595]
[1721304669472,0.60341135,3465.7,3465.1,2.88591]
[1721304669621,0.60341135,3465.6,3465.1,2.88591]
[1721304671136,0.60341135,3465.6,3465.2,3.00304617]
[1721304671430,0.60341135,3465.6,3465.2,3.81904617]
[1721304671756,0.60341135,3465.6,3465.3,2.88575]
[1721304672069,0.60341135,3465.7,3465.4,3.81883521]
[1721304672368,0.90764421,3465.9,3465.4,3.81883521]
[1721304672369,0.60341135,3465.9,3465.4,3.81883521]
[1721304672698,0.60341135,3465.8,3465.4,3.81883521]
[1721304672981,0.60341135,3465.8,3465.6,3.7015]
[1721304673128,0.60341135,3465.9,3465.7,2.8854]
[1721304673328,0.60341135,3465.9,3465.7,3.00250878]
[1721304673524,0.90764421,3466.1,3465.7,3.00250878]
[1721304673525,0.60341135,3466.0,3465.7,3.00250878]
[1721304674440,0.60341135,3466.0,3465.8,2.88532]
[1721304674645,0.60341135,3466.0,3465.8,3.0024033]
[1721304677965,0.60341135,3465.9,3465.8,0.1170833]
[1721304678182,2.88525,3465.9,3465.8,0.1170833]
[1721304678382,4.0967,3465.9,3465.2,2.88578]
[1721304678699,4.0967,3465.9,3465.3,0.11731223]
[1721304678700,0.60427322,3465.6,3465.3,0.11731223]
[1721304679039,0.60427322,3465.5,3465.2,2.88578]
[1721304679242,0.60427322,3465.5,3465.4,0.11728675]
[1721304679576,0.90640984,3465.7,3465.2,2.88578]
[1721304679577,0.60427322,3465.6,3465.2,2.88578]
[1721304679876,0.60427322,3465.6,3465.3,0.11731223]
[1721304680044,0.60427322,3465.6,3465.2,2.88578]
[1721304680245,0.60427322,3465.6,3465.4,0.11742718]
[1721304680575,1.04387853,3465.5,3465.0,2.88597]
[1721304680778,0.60427322,3465.5,3465.1,2.88589]
[1721304680978,0.60427322,3465.5,3465.1,3.00339363]
[1721304682177,0.60427322,3465.8,3465.5,2.88558]
[1721304682387,0.60427322,3465.9,3465.5,2.88558]
[1721304682676,0.60427322,3466.0,3465.6,0.11737623]
[1721304683486,0.60427322,3465.9,3465.6,0.11737623]
[1721304685044,1.33235453,3465.9,3465.3,2.88567]
[1721304685384,0.60427322,3465.8,3465.7,0.11734859]
[1721304685681,3.48964322,3465.8,3465.7,0.11734859]
[1721304685844,3.48964322,3465.8,3465.2,2.3332]
[1721304685845,2.88537,3465.8,3465.2,2.3332]
[1721304686046,0.60390203,3465.7,3465.2,2.3332]
[1721304686744,0.60390203,3465.7,3465.2,6.03502]
[1721304686997,3.48927203,3465.8,3465.2,6.03502]
[1721304687290,0.60390203,3465.8,3465.4,0.816]
[1721304687507,1.21145,3466.1,3465.9,2.88525]
[1721304687508,0.60390203,3466.1,3465.9,2.88525]
[1721304687729,0.60390203,3466.1,3465.3,3.0]
[1721304687730,0.60390203,3466.4,3466.2,2.3271]
[1721304688015,4.39380683,3466.9,3466.2,3.1431]
[1721304688016,0.60390203,3466.9,3466.2,3.1431]
[1721304688217,3.79067984,3467.1,3466.4,0.816]
[1721304688218,3.48817203,3467.1,3466.4,0.816]
[1721304688570,0.60390203,3467.2,3466.6,3.70066]
[1721304689508,0.60390203,3467.2,3466.9,2.88441]
[1721304689714,0.60390203,3467.3,3466.9,2.88441]
[1721304690471,0.60390203,3467.4,3466.9,2.88441]
[1721304690792,0.60390203,3467.3,3466.9,2.88441]
[1721304691377,1.16446822,3467.4,3466.9,2.88441]
[1721304692391,3.79030984,3467.6,3467.1,2.88423]
[1721304692392,0.60390203,3467.5,3467.1,2.88423]
[1721304692784,0.60390203,3467.5,3467.2,0.11695784]